{"text_format":"3","workbook":"xlsx","n_sheets":1,"sheets":["Éves munkaidő-nyilvántartás"],"not_rendered":{"defined_names":2},"read":"whole","date_system":"1900"}

{"sheet":"Éves munkaidő-nyilvántartás","index":0,"n_rows":140,"n_cols":12,"rows_kept":140,"merged":[[0,1,1,11],[2,6,2,7],[2,8,2,9],[5,1,5,11],[15,3,15,4],[26,3,26,4],[37,3,37,4],[39,1,39,11],[49,3,49,4],[60,3,60,4],[71,3,71,4],[73,1,73,11],[83,3,83,4],[94,3,94,4],[105,3,105,4],[107,1,107,11],[117,3,117,4],[128,3,128,4],[139,3,139,4]]}
[null,"Alkalmazotti jelenléti ív"]
[]
[null,"Alkalmazott neve:",null,"E-mail-cím:",null,null,"Tárgyévi göngyölített adatok:"]
[null,"Felettes:",null,"Telefonszám:",null,null,"Rendes munkaidő:",{"$f":"SUM(C16,C27,C38,C50,C61,C72,C84,C95,C106,C118,C129,C140)","v":0},"Túlóra:",{"$f":"SUM(F16,F27,F38,F50,F61,F72,F84,F95,F106,F118,F129,F140)","v":0},"Összesen:",{"$f":"SUM(H4,J4)","v":0}]
[]
[null,"Január, február, március      Alkalmazotti jelenléti ív: napi, heti, havi, éves"]
[null,"Január","1. hét","Túlóra","2. hét","Túlóra ","3. hét","Túlóra  ","4. hét","Túlóra   ","5. hét","Túlóra    "]
[null,"Hétfő"]
[null,"Kedd"]
[null,"Szerda"]
[null,"Csütörtök"]
[null,"Péntek"]
[null,"Szombat"]
[null,"Vasárnap"]
[null,"Teljes heti munkaidő",{"$f":"SUBTOTAL(109,Január[1. hét])","v":0},{"$f":"SUBTOTAL(109,Január[Túlóra])","v":0},{"$f":"SUBTOTAL(109,Január[2. hét])","v":0},{"$f":"SUBTOTAL(109,Január[[Túlóra ]])","v":0},{"$f":"SUBTOTAL(109,Január[3. hét])","v":0},{"$f":"SUBTOTAL(109,Január[[Túlóra  ]])","v":0},{"$f":"SUBTOTAL(109,Január[4. hét])","v":0},{"$f":"SUBTOTAL(109,Január[[Túlóra   ]])","v":0},{"$f":"SUBTOTAL(109,Január[5. hét])","v":0},{"$f":"SUBTOTAL(109,Január[[Túlóra    ]])","v":0}]
[null,"Jan. összesen: Rendes munkaidő",{"$f":"SUM(Január[[#Totals],[1. hét]],Január[[#Totals],[2. hét]],Január[[#Totals],[3. hét]],Január[[#Totals],[4. hét]],Január[[#Totals],[5. hét]])","v":0},"Jan. összesen: Túlóra",null,{"$f":"SUM(Január[[#Totals],[Túlóra]],Január[[#Totals],[Túlóra ]],Január[[#Totals],[Túlóra  ]],Január[[#Totals],[Túlóra   ]],Január[[#Totals],[Túlóra    ]])","v":0}]
[]
[null,"Február","1. hét","Túlóra","2. hét","Túlóra ","3. hét","Túlóra  ","4. hét","Túlóra   ","5. hét","Túlóra    "]
[null,"Hétfő"]
[null,"Kedd"]
[null,"Szerda"]
[null,"Csütörtök"]
[null,"Péntek"]
[null,"Szombat"]
[null,"Vasárnap"]
[null,"Teljes heti munkaidő",{"$f":"SUBTOTAL(109,Február[1. hét])","v":0},{"$f":"SUBTOTAL(109,Február[Túlóra])","v":0},{"$f":"SUBTOTAL(109,Február[2. hét])","v":0},{"$f":"SUBTOTAL(109,Február[[Túlóra ]])","v":0},{"$f":"SUBTOTAL(109,Február[3. hét])","v":0},{"$f":"SUBTOTAL(109,Február[[Túlóra  ]])","v":0},{"$f":"SUBTOTAL(109,Február[4. hét])","v":0},{"$f":"SUBTOTAL(109,Február[[Túlóra   ]])","v":0},{"$f":"SUBTOTAL(109,Február[5. hét])","v":0},{"$f":"SUBTOTAL(109,Február[[Túlóra    ]])","v":0}]
[null,"Febr. összesen: Rendes munkaidő",{"$f":"SUM(Február[[#Totals],[1. hét]],Február[[#Totals],[2. hét]],Február[[#Totals],[3. hét]],Február[[#Totals],[4. hét]],Február[[#Totals],[5. hét]])","v":0},"Febr. összesen: Túlóra",null,{"$f":"SUM(Február[[#Totals],[Túlóra]],Február[[#Totals],[Túlóra ]],Február[[#Totals],[Túlóra  ]],Február[[#Totals],[Túlóra   ]],Február[[#Totals],[Túlóra    ]])","v":0}]
[]
[null,"Március","1. hét","Túlóra","2. hét","Túlóra ","3. hét","Túlóra  ","4. hét","Túlóra   ","5. hét","Túlóra    "]
[null,"Hétfő"]
[null,"Kedd"]
[null,"Szerda"]
[null,"Csütörtök"]
[null,"Péntek"]
[null,"Szombat"]
[null,"Vasárnap"]
[null,"Teljes heti munkaidő",{"$f":"SUBTOTAL(109,Március[1. hét])","v":0},{"$f":"SUBTOTAL(109,Március[Túlóra])","v":0},{"$f":"SUBTOTAL(109,Március[2. hét])","v":0},{"$f":"SUBTOTAL(109,Március[[Túlóra ]])","v":0},{"$f":"SUBTOTAL(109,Március[3. hét])","v":0},{"$f":"SUBTOTAL(109,Március[[Túlóra  ]])","v":0},{"$f":"SUBTOTAL(109,Március[4. hét])","v":0},{"$f":"SUBTOTAL(109,Március[[Túlóra   ]])","v":0},{"$f":"SUBTOTAL(109,Március[5. hét])","v":0},{"$f":"SUBTOTAL(109,Március[[Túlóra    ]])","v":0}]
[null,"Márc. összesen: Rendes munkaidő",{"$f":"SUM(Március[[#Totals],[1. hét]],Március[[#Totals],[2. hét]],Március[[#Totals],[3. hét]],Március[[#Totals],[4. hét]],Március[[#Totals],[5. hét]])","v":0},"Márc. összesen: Túlóra",null,{"$f":"SUM(Március[[#Totals],[Túlóra]],Március[[#Totals],[Túlóra ]],Március[[#Totals],[Túlóra  ]],Március[[#Totals],[Túlóra   ]],Március[[#Totals],[Túlóra    ]])","v":0}]
[]
[null,"Április, május, június      Alkalmazotti jelenléti ív: napi, heti, havi, éves"]
[null,"Április","1. hét","Túlóra","2. hét","Túlóra ","3. hét","Túlóra  ","4. hét","Túlóra   ","5. hét","Túlóra    "]
[null,"Hétfő"]
[null,"Kedd"]
[null,"Szerda"]
[null,"Csütörtök"]
[null,"Péntek"]
[null,"Szombat"]
[null,"Vasárnap"]
[null,"Teljes heti munkaidő",{"$f":"SUBTOTAL(109,Április[1. hét])","v":0},{"$f":"SUBTOTAL(109,Április[Túlóra])","v":0},{"$f":"SUBTOTAL(109,Április[2. hét])","v":0},{"$f":"SUBTOTAL(109,Április[[Túlóra ]])","v":0},{"$f":"SUBTOTAL(109,Április[3. hét])","v":0},{"$f":"SUBTOTAL(109,Április[[Túlóra  ]])","v":0},{"$f":"SUBTOTAL(109,Április[4. hét])","v":0},{"$f":"SUBTOTAL(109,Április[[Túlóra   ]])","v":0},{"$f":"SUBTOTAL(109,Április[5. hét])","v":0},{"$f":"SUBTOTAL(109,Április[[Túlóra    ]])","v":0}]
[null,"Ápr. összesen: Rendes munkaidő",{"$f":"SUM(Április[[#Totals],[1. hét]],Április[[#Totals],[2. hét]],Április[[#Totals],[3. hét]],Április[[#Totals],[4. hét]],Április[[#Totals],[5. hét]])","v":0},"Ápr. összesen: Túlóra",null,{"$f":"SUM(Április[[#Totals],[Túlóra]],Április[[#Totals],[Túlóra ]],Április[[#Totals],[Túlóra  ]],Április[[#Totals],[Túlóra   ]],Április[[#Totals],[Túlóra    ]])","v":0}]
[]
[null,"Május","1. hét","Túlóra","2. hét","Túlóra ","3. hét","Túlóra  ","4. hét","Túlóra   ","5. hét","Túlóra    "]
[null,"Hétfő"]
[null,"Kedd"]
[null,"Szerda"]
[null,"Csütörtök"]
[null,"Péntek"]
[null,"Szombat"]
[null,"Vasárnap"]
[null,"Teljes heti munkaidő",{"$f":"SUBTOTAL(109,Május[1. hét])","v":0},{"$f":"SUBTOTAL(109,Május[Túlóra])","v":0},{"$f":"SUBTOTAL(109,Május[2. hét])","v":0},{"$f":"SUBTOTAL(109,Május[[Túlóra ]])","v":0},{"$f":"SUBTOTAL(109,Május[3. hét])","v":0},{"$f":"SUBTOTAL(109,Május[[Túlóra  ]])","v":0},{"$f":"SUBTOTAL(109,Május[4. hét])","v":0},{"$f":"SUBTOTAL(109,Május[[Túlóra   ]])","v":0},{"$f":"SUBTOTAL(109,Május[5. hét])","v":0},{"$f":"SUBTOTAL(109,Május[[Túlóra    ]])","v":0}]
[null,"Máj. összesen: Rendes munkaidő",{"$f":"SUM(Május[[#Totals],[1. hét]],Május[[#Totals],[2. hét]],Május[[#Totals],[3. hét]],Május[[#Totals],[4. hét]],Május[[#Totals],[5. hét]])","v":0},"Máj. összesen: Túlóra",null,{"$f":"SUM(Május[[#Totals],[Túlóra]],Május[[#Totals],[Túlóra ]],Május[[#Totals],[Túlóra  ]],Május[[#Totals],[Túlóra   ]],Május[[#Totals],[Túlóra    ]])","v":0}]
[]
[null,"Június","1. hét","Túlóra","2. hét","Túlóra ","3. hét","Túlóra  ","4. hét","Túlóra   ","5. hét","Túlóra    "]
[null,"Hétfő"]
[null,"Kedd"]
[null,"Szerda"]
[null,"Csütörtök"]
[null,"Péntek"]
[null,"Szombat"]
[null,"Vasárnap"]
[null,"Teljes heti munkaidő",{"$f":"SUBTOTAL(109,Június[1. hét])","v":0},{"$f":"SUBTOTAL(109,Június[Túlóra])","v":0},{"$f":"SUBTOTAL(109,Június[2. hét])","v":0},{"$f":"SUBTOTAL(109,Június[[Túlóra ]])","v":0},{"$f":"SUBTOTAL(109,Június[3. hét])","v":0},{"$f":"SUBTOTAL(109,Június[[Túlóra  ]])","v":0},{"$f":"SUBTOTAL(109,Június[4. hét])","v":0},{"$f":"SUBTOTAL(109,Június[[Túlóra   ]])","v":0},{"$f":"SUBTOTAL(109,Június[5. hét])","v":0},{"$f":"SUBTOTAL(109,Június[[Túlóra    ]])","v":0}]
[null,"Jún. összesen: Rendes munkaidő",{"$f":"SUM(Június[[#Totals],[1. hét]],Június[[#Totals],[2. hét]],Június[[#Totals],[3. hét]],Június[[#Totals],[4. hét]],Június[[#Totals],[5. hét]])","v":0},"Jún. összesen: Túlóra",null,{"$f":"SUM(Június[[#Totals],[Túlóra]],Június[[#Totals],[Túlóra ]],Június[[#Totals],[Túlóra  ]],Június[[#Totals],[Túlóra   ]],Június[[#Totals],[Túlóra    ]])","v":0}]
[]
[null,"Július, augusztus, szeptember      Alkalmazotti jelenléti ív: napi, heti, havi, éves"]
[null,"Július","1. hét","Túlóra","2. hét","Túlóra ","3. hét","Túlóra  ","4. hét","Túlóra   ","5. hét","Túlóra    "]
[null,"Hétfő"]
[null,"Kedd"]
[null,"Szerda"]
[null,"Csütörtök"]
[null,"Péntek"]
[null,"Szombat"]
[null,"Vasárnap"]
[null,"Teljes heti munkaidő",{"$f":"SUBTOTAL(109,Július[1. hét])","v":0},{"$f":"SUBTOTAL(109,Július[Túlóra])","v":0},{"$f":"SUBTOTAL(109,Július[2. hét])","v":0},{"$f":"SUBTOTAL(109,Július[[Túlóra ]])","v":0},{"$f":"SUBTOTAL(109,Július[3. hét])","v":0},{"$f":"SUBTOTAL(109,Július[[Túlóra  ]])","v":0},{"$f":"SUBTOTAL(109,Július[4. hét])","v":0},{"$f":"SUBTOTAL(109,Július[[Túlóra   ]])","v":0},{"$f":"SUBTOTAL(109,Július[5. hét])","v":0},{"$f":"SUBTOTAL(109,Július[[Túlóra    ]])","v":0}]
[null,"Júl. összesen: Rendes munkaidő",{"$f":"SUM(Július[[#Totals],[1. hét]],Július[[#Totals],[2. hét]],Július[[#Totals],[3. hét]],Július[[#Totals],[4. hét]],Július[[#Totals],[5. hét]])","v":0},"Júl. összesen: Túlóra",null,{"$f":"SUM(Július[[#Totals],[Túlóra]],Július[[#Totals],[Túlóra ]],Július[[#Totals],[Túlóra  ]],Július[[#Totals],[Túlóra   ]],Július[[#Totals],[Túlóra    ]])","v":0}]
[]
[null,"Augusztus","1. hét","Túlóra","2. hét","Túlóra ","3. hét","Túlóra  ","4. hét","Túlóra   ","5. hét","Túlóra    "]
[null,"Hétfő"]
[null,"Kedd"]
[null,"Szerda"]
[null,"Csütörtök"]
[null,"Péntek"]
[null,"Szombat"]
[null,"Vasárnap"]
[null,"Teljes heti munkaidő",{"$f":"SUBTOTAL(109,Augusztus[1. hét])","v":0},{"$f":"SUBTOTAL(109,Augusztus[Túlóra])","v":0},{"$f":"SUBTOTAL(109,Augusztus[2. hét])","v":0},{"$f":"SUBTOTAL(109,Augusztus[[Túlóra ]])","v":0},{"$f":"SUBTOTAL(109,Augusztus[3. hét])","v":0},{"$f":"SUBTOTAL(109,Augusztus[[Túlóra  ]])","v":0},{"$f":"SUBTOTAL(109,Augusztus[4. hét])","v":0},{"$f":"SUBTOTAL(109,Augusztus[[Túlóra   ]])","v":0},{"$f":"SUBTOTAL(109,Augusztus[5. hét])","v":0},{"$f":"SUBTOTAL(109,Augusztus[[Túlóra    ]])","v":0}]
[null,"Aug. összesen: Rendes munkaidő",{"$f":"SUM(Augusztus[[#Totals],[1. hét]],Augusztus[[#Totals],[2. hét]],Augusztus[[#Totals],[3. hét]],Augusztus[[#Totals],[4. hét]],Augusztus[[#Totals],[5. hét]])","v":0},"Aug. összesen: Túlóra",null,{"$f":"SUM(Augusztus[[#Totals],[Túlóra]],Augusztus[[#Totals],[Túlóra ]],Augusztus[[#Totals],[Túlóra  ]],Augusztus[[#Totals],[Túlóra   ]],Augusztus[[#Totals],[Túlóra    ]])","v":0}]
[]
[null,"Szeptember","1. hét","Túlóra","2. hét","Túlóra ","3. hét","Túlóra  ","4. hét","Túlóra   ","5. hét","Túlóra    "]
[null,"Hétfő"]
[null,"Kedd"]
[null,"Szerda"]
[null,"Csütörtök"]
[null,"Péntek"]
[null,"Szombat"]
[null,"Vasárnap"]
[null,"Teljes heti munkaidő",{"$f":"SUBTOTAL(109,Szeptember[1. hét])","v":0},{"$f":"SUBTOTAL(109,Szeptember[Túlóra])","v":0},{"$f":"SUBTOTAL(109,Szeptember[2. hét])","v":0},{"$f":"SUBTOTAL(109,Szeptember[[Túlóra ]])","v":0},{"$f":"SUBTOTAL(109,Szeptember[3. hét])","v":0},{"$f":"SUBTOTAL(109,Szeptember[[Túlóra  ]])","v":0},{"$f":"SUBTOTAL(109,Szeptember[4. hét])","v":0},{"$f":"SUBTOTAL(109,Szeptember[[Túlóra   ]])","v":0},{"$f":"SUBTOTAL(109,Szeptember[5. hét])","v":0},{"$f":"SUBTOTAL(109,Szeptember[[Túlóra    ]])","v":0}]
[null,"Szept. összesen: Rendes munkaidő",{"$f":"SUM(Szeptember[[#Totals],[1. hét]],Szeptember[[#Totals],[2. hét]],Szeptember[[#Totals],[3. hét]],Szeptember[[#Totals],[4. hét]],Szeptember[[#Totals],[5. hét]])","v":0},"Szept. összesen: Túlóra",null,{"$f":"SUM(Szeptember[[#Totals],[Túlóra]],Szeptember[[#Totals],[Túlóra ]],Szeptember[[#Totals],[Túlóra  ]],Szeptember[[#Totals],[Túlóra   ]],Szeptember[[#Totals],[Túlóra    ]])","v":0}]
[]
[null,"Október, november, december      Alkalmazotti jelenléti ív: napi, heti, havi, éves"]
[null,"Október","1. hét","Túlóra","2. hét","Túlóra ","3. hét","Túlóra  ","4. hét","Túlóra   ","5. hét","Túlóra    "]
[null,"Hétfő"]
[null,"Kedd"]
[null,"Szerda"]
[null,"Csütörtök"]
[null,"Péntek"]
[null,"Szombat"]
[null,"Vasárnap"]
[null,"Teljes heti munkaidő",{"$f":"SUBTOTAL(109,Október[1. hét])","v":0},{"$f":"SUBTOTAL(109,Október[Túlóra])","v":0},{"$f":"SUBTOTAL(109,Október[2. hét])","v":0},{"$f":"SUBTOTAL(109,Október[[Túlóra ]])","v":0},{"$f":"SUBTOTAL(109,Október[3. hét])","v":0},{"$f":"SUBTOTAL(109,Október[[Túlóra  ]])","v":0},{"$f":"SUBTOTAL(109,Október[4. hét])","v":0},{"$f":"SUBTOTAL(109,Október[[Túlóra   ]])","v":0},{"$f":"SUBTOTAL(109,Október[5. hét])","v":0},{"$f":"SUBTOTAL(109,Október[[Túlóra    ]])","v":0}]
[null,"Okt. összesen: Rendes munkaidő",{"$f":"SUM(Október[[#Totals],[1. hét]],Október[[#Totals],[2. hét]],Október[[#Totals],[3. hét]],Október[[#Totals],[4. hét]],Október[[#Totals],[5. hét]])","v":0},"Okt. összesen: Túlóra",null,{"$f":"SUM(Október[[#Totals],[Túlóra]],Október[[#Totals],[Túlóra ]],Október[[#Totals],[Túlóra  ]],Október[[#Totals],[Túlóra   ]],Október[[#Totals],[Túlóra    ]])","v":0}]
[]
[null,"November","1. hét","Túlóra","2. hét","Túlóra ","3. hét","Túlóra  ","4. hét","Túlóra   ","5. hét","Túlóra    "]
[null,"Hétfő"]
[null,"Kedd"]
[null,"Szerda"]
[null,"Csütörtök"]
[null,"Péntek"]
[null,"Szombat"]
[null,"Vasárnap"]
[null,"Teljes heti munkaidő",{"$f":"SUBTOTAL(109,November[1. hét])","v":0},{"$f":"SUBTOTAL(109,November[Túlóra])","v":0},{"$f":"SUBTOTAL(109,November[2. hét])","v":0},{"$f":"SUBTOTAL(109,November[[Túlóra ]])","v":0},{"$f":"SUBTOTAL(109,November[3. hét])","v":0},{"$f":"SUBTOTAL(109,November[[Túlóra  ]])","v":0},{"$f":"SUBTOTAL(109,November[4. hét])","v":0},{"$f":"SUBTOTAL(109,November[[Túlóra   ]])","v":0},{"$f":"SUBTOTAL(109,November[5. hét])","v":0},{"$f":"SUBTOTAL(109,November[[Túlóra    ]])","v":0}]
[null,"Nov. összesen: Rendes munkaidő",{"$f":"SUM(November[[#Totals],[1. hét]],November[[#Totals],[2. hét]],November[[#Totals],[3. hét]],November[[#Totals],[4. hét]],November[[#Totals],[5. hét]])","v":0},"Nov. összesen: Túlóra",null,{"$f":"SUM(November[[#Totals],[Túlóra]],November[[#Totals],[Túlóra ]],November[[#Totals],[Túlóra  ]],November[[#Totals],[Túlóra   ]],November[[#Totals],[Túlóra    ]])","v":0}]
[]
[null,"December","1. hét","Túlóra","2. hét","Túlóra ","3. hét","Túlóra  ","4. hét","Túlóra   ","5. hét","Túlóra    "]
[null,"Hétfő"]
[null,"Kedd"]
[null,"Szerda"]
[null,"Csütörtök"]
[null,"Péntek"]
[null,"Szombat"]
[null,"Vasárnap"]
[null,"Teljes heti munkaidő",{"$f":"SUBTOTAL(109,December[1. hét])","v":0},{"$f":"SUBTOTAL(109,December[Túlóra])","v":0},{"$f":"SUBTOTAL(109,December[2. hét])","v":0},{"$f":"SUBTOTAL(109,December[[Túlóra ]])","v":0},{"$f":"SUBTOTAL(109,December[3. hét])","v":0},{"$f":"SUBTOTAL(109,December[[Túlóra  ]])","v":0},{"$f":"SUBTOTAL(109,December[4. hét])","v":0},{"$f":"SUBTOTAL(109,December[[Túlóra   ]])","v":0},{"$f":"SUBTOTAL(109,December[5. hét])","v":0},{"$f":"SUBTOTAL(109,December[[Túlóra    ]])","v":0}]
[null,"Dec. összesen: Rendes munkaidő",{"$f":"SUM(December[[#Totals],[1. hét]],December[[#Totals],[2. hét]],December[[#Totals],[3. hét]],December[[#Totals],[4. hét]],December[[#Totals],[5. hét]])","v":0},"Dec. összesen: Túlóra",null,{"$f":"SUM(December[[#Totals],[Túlóra]],December[[#Totals],[Túlóra ]],December[[#Totals],[Túlóra  ]],December[[#Totals],[Túlóra   ]],December[[#Totals],[Túlóra    ]])","v":0}]